Cogmind - Beta 11.2 @@@ ROGUE MODE // 2023.02.22 @ 15:58:26 Player: ILikeMonsters1890 Result: Destroyed by as-62956 with Assembled Heavy Rifle Performance ------------- Evolutions (0) 0 Regions Visited (4) 800 Robots Destroyed (38) 190 Value Destroyed (559) 559 Prototype IDs (0) 0 Alien Tech Used (0) 0 Bonus (0) 0 TOTAL SCORE: 1549 Bonus ------- None Cogmind --------- Core Integrity 0/250 Matter 239/300 Energy 100/100 System Corruption 0% Temperature Cool (0) Movement Rolling (95) Ox1 Location -9/Mines Parts ------- > --- POWER (1) -------- (None) > --- PROPULSION (2) --- Wheel > --- UTILITY (2) ------ Medium Storage Unit Seismic Detector > --- WEAPON (2) ------- Maul > --- INVENTORY (10) --- Light Ion Engine Wheel Flight Unit Medium Storage Unit Sensor Array Signal Interpreter Medium Armor Plating Heavy Assault Rifle Heavy Assault Rifle Heavy Assault Rifle Peak State ------------ > --- POWER ------------ Ion Engine > --- PROPULSION ------- Wheel Wheel > --- UTILITY ---------- Medium Storage Unit Seismic Detector > --- WEAPON ----------- Heavy Assault Rifle Heavy Assault Rifle > --- INVENTORY -------- Light Ion Engine Light Ion Engine Wheel Wheel Small Storage Unit Sensor Array Signal Interpreter Seismic Detector Beam Cannon Beam Cannon [Rating: 10] Favorites ----------- Power Ion Engine Engine Ion Engine Propulsion Wheel Leg Aluminum Leg Wheel Wheel Utility Seismic Detector Device Seismic Detector Storage Medium Storage Unit Weapon Heavy Assault Rifle Energy Gun Medium Laser Energy Cannon Beam Cannon Ballistic Gun Heavy Assault Rifle Launcher Grenade Launcher Impact Weapon Maul Build | -11 -10 -10 -10 -9 ------- Run | Scr Mat Min Exi Min Slots Evolved . | . . . . . Power . | . . . . . Propulsion . | . . . . . Utility . | . . . . . Weapon . | . . . . . Parts Attached 20 | 4 7 4 . 5 Power 1 | . . 1 . . Engine 1 | . . 1 . . Core . | . . . . . Reactor . | . . . . . Propulsion 5 | 2 1 1 . 1 Treads . | . . . . . Leg . | . . . . . Wheel 5 | 2 1 1 . 1 Hover . | . . . . . Flight . | . . . . . Utility 3 | 1 2 . . . Device 1 | 1 . . . . Storage 2 | . 2 . . . Processor . | . . . . . Hackware . | . . . . . Protection . | . . . . . Artifact . | . . . . . Weapon 11 | 1 4 2 . 4 Energy Gun . | . . . . . Energy Cannon 2 | . 2 . . . Ballistic Gun 5 | 1 2 1 . 1 Ballistic Cannon . | . . . . . Launcher 3 | . . 1 . 2 Special Weapon . | . . . . . Impact Weapon 1 | . . . . 1 Slashing Weapon . | . . . . . Piercing Weapon . | . . . . . Special Melee Weapon . | . . . . . Unidentified Prototypes . | . . . . . Parts Lost 4 | . . . . 4 Power 1 | . . . . 1 Propulsion 2 | . . . . 2 Utility . | . . . . . Weapon 1 | . . . . 1 Highest Loss Streak 3 | . . . . 3 To Critical Strikes . | . . . . . Average Slot Usage (%) 99 | . 100 100 100 95 Engine 14 | . 14 14 14 14 Wheel 27 | . 28 28 28 23 Device 14 | . 14 14 14 14 Storage 14 | . 14 14 14 14 Energy Cannon 3 | . 14 . . . Ballistic Gun 21 | . 10 27 28 12 Impact Weapon 1 | . . . . 12 Naked Turns . | . . . . . Heaviest Build 22 | 15 22 22 22 22 Greatest Support 20 | 20 20 20 20 20 Greatest Overweight (x) 2 | . 1 1 1 2 Average Overweight (x) . | . . 1 1 1 Largest Inventory Capacity 10 | 8 10 10 10 10 Average Capacity 9 | 8 9 10 10 10 Most Carried 10 | 6 10 10 10 10 Average Carried 9 | 3 9 10 10 9 Final Capacity 10 | 8 10 10 10 10 Final Carried 10 | 6 10 10 10 10 Class Distribution -------------------- 61% | Scavenger-Mutant 38% | Mutant Dominant Class ---------------- Mutant | -10/Materials Scavenger-Mutant | -10/Mines Scavenger-Mutant | -10/Exiles Scavenger-Mutant | -9/Mines Resources | -11 -10 -10 -10 -9 ----------- Run | Scr Mat Min Exi Min Matter Collected 632 | 270 68 250 . 44 Remotely . | . . . . . Salvage Created 939 | 229 125 432 . 153 Parts 61 | 15 18 18 . 10 Haulers Intercepted . | . . . . . Recyclers Shooed 3 | 1 . 2 . . Parts Field Recycled . | . . . . . Retrieved Matter . | . . . . . Parts Self-Destructed . | . . . . . Prevented . | . . . . . Kills | -11 -10 -10 -10 -9 ------- Run | Scr Mat Min Exi Min Combat Hostiles Destroyed 28 | . 6 10 . 12 Guns 9 | . 3 6 . . Cannons 3 | . 3 . . . AOE 13 | . . 4 . 9 Classes Destroyed 7 | 3 2 1 . 1 Worker 3 | 1 . 2 . . Tunneler 7 | 5 1 1 . . Recycler 3 | 1 . 2 . . Watcher 2 | . 2 . . . Swarmer 16 | . 6 6 . 4 Grunt 7 | . . 4 . 3 Assembled 5 | . . . . 5 Best Kill Streak 7 | 4 4 5 . 7 Combat Bots Only 7 | . 3 3 . 7 Max Kills in Single Turn 4 | 1 1 2 . 4 Gunslinging . | . . . . . Exploded 4 | . . 2 . 4 Melee . | . . . . . Uniques/NPCs Destroyed . | . . . . . Combat | -11 -10 -10 -10 -9 -------- Run | Scr Mat Min Exi Min Damage Taken 944 | . 178 411 . 355 Core 257 | . 31 97 . 129 Absorbed by Shields . | . . . . . Core Remaining (%) 100 | 100 . . . . Volleys Fired 66 | 10 21 28 . 7 Largest 2 | 2 2 2 . 1 Hottest 120 | 70 120 46 . 30 Shots Fired 122 | 20 42 53 . 7 Gun 90 | 20 20 50 . . Cannon 22 | . 22 . . . Launcher 10 | . . 3 . 7 Special . | . . . . . Kinetic 70 | 10 10 50 . . Thermal 42 | 10 32 . . . Explosive 10 | . . 3 . 7 Electromagnetic . | . . . . . Robot Hit Streak 9 | 6 3 9 . 5 Robot Miss Streak 6 | 2 6 3 . 1 Penetration Max . | . . . . . Secondary Targets 2 | . 1 1 . . Max Gunslinging Chain 1 | . 1 1 . . Shots Hit Robots 69 | 10 14 33 . 12 Core Hits 46 | 8 10 16 . 12 Critical Kills 1 | . . 1 . . Critical Parts Destroyed . | . . . . . Critical Strikes 2 | 1 . 1 . . Burn 1 | 1 . . . . Destroy 1 | . . 1 . . Melee Attacks 7 | . . . . 7 Impact 7 | . . . . 7 Slashing . | . . . . . Piercing . | . . . . . Sneak Attacks . | . . . . . Combat Hostiles . | . . . . . Follow-up Attacks . | . . . . . Damage Inflicted 1970 | 126 255 765 . 824 Guns 717 | 126 77 514 . . Cannons 156 | . 156 . . . Explosions 846 | . . 251 . 595 Melee 229 | . . . . 229 Ramming 22 | . 22 . . . Kinetic 570 | 29 27 514 . . Thermal 410 | 97 206 107 . . Explosive 739 | . . 144 . 595 Electromagnetic . | . . . . . Impact 229 | . . . . 229 Slashing . | . . . . . Piercing . | . . . . . Highest Corruption . | . . . . . Average Corruption . | . . . . . Corruption Purged . | . . . . . Corruption Blocked . | . . . . . Overload Shots . | . . . . . Overflow Damage 95 | . . 14 . 81 Projectiles . | . . . . . Explosions 67 | . . 14 . 53 Melee 28 | . . . . 28 Knockbacks . | . . . . . Impact . | . . . . . Kinetic . | . . . . . Secondary . | . . . . . Self-Inflicted Damage 227 | . 11 109 . 107 Shots 8 | . . 2 . 6 Rammed 1 | . 1 . . . Targets Rammed 1 | . 1 . . . Kicked . | . . . . . Crushed . | . . . . . Highest Temperature 300 | 27 300 28 . 15 Average Temperature 56 | 10 87 6 . 10 Received Heat Transfer 245 | . . 171 . 74 Siege Activations . | . . . . . Robots Corrupted . | . . . . . Combat Hostiles . | . . . . . Parts Fried 3 | . . . . 3 Impact Corruptions 3 | . . . . 3 Robots Melted . | . . . . . Combat Hostiles . | . . . . . Parts Melted 1 | 1 . . . . Heat Transferred 1001 | 370 481 150 . . Parts Sabotaged . | . . . . . Parts Stolen . | . . . . . Parts Stripped . | . . . . . Power Chain Reactions . | . . . . . Missiles Intercepted . | . . . . . Alert | -11 -10 -10 -10 -9 ------- Run | Scr Mat Min Exi Min Peak Influence 343 | 35 209 343 . 210 Initial 81 | . 22 81 . . Average 191 | 17 151 261 . 91 Maximum Alert Level 1 | . 1 1 . 1 Low Security (%) 45 | 100 49 26 . 90 Level 1 54 | . 50 73 . 9 Level 2 . | . . . . . Level 3 . | . . . . . Level 4 . | . . . . . Level 5 . | . . . . . High Security . | . . . . . Max Security . | . . . . . Squads Dispatched 1 | . 1 . . . Investigation 1 | . 1 . . . Extermination . | . . . . . Reinforcement . | . . . . . Assault . | . . . . . Garrison . | . . . . . Intercept . | . . . . . Searches Triggered . | . . . . . Construction Impeded . | . . . . . Haulers Reinforced . | . . . . . Active Scanning Responses . | . . . . . Cargo Convoy Interrupts . | . . . . . Stealth | -11 -10 -10 -10 -9 --------- Run | Scr Mat Min Exi Min Distress Signals 3 | . 3 . . . Communications Jammed . | . . . . . Distress Signals . | . . . . . Times Spotted 37 | . 10 10 . 17 Peak Tracking Total 6 | . 4 3 . 6 Tactical Retreats . | . . . . . Traps | -11 -10 -10 -10 -9 ------- Run | Scr Mat Min Exi Min Traps Triggered . | . . . . . Indirectly . | . . . . . Trap Hack Attempts . | . . . . . Triggered . | . . . . . Disarmed . | . . . . . Reprogrammed . | . . . . . Reused . | . . . . . Traps Extracted . | . . . . . Installed . | . . . . . Triggered . | . . . . . Machines | -11 -10 -10 -10 -9 ---------- Run | Scr Mat Min Exi Min Machines Disabled 2 | . . 2 . . Max in Single Turn 2 | . . 2 . . Machines Sabotaged . | . . . . . Garrisons Compromised . | . . . . . Overloaded Fab Kills . | . . . . . Hacking | -11 -10 -10 -10 -9 --------- Run | Scr Mat Min Exi Min Machines Accessed 5 | . 4 . 1 . Terminals 4 | . 4 . . . Fabricators . | . . . . . Repair Stations . | . . . . . Recycling Units . | . . . . . Scanalyzers . | . . . . . Garrison Access . | . . . . . Total Hacks 38 | . 15 . 23 . Successful 27 | . 4 . 23 . Failed 11 | . 11 . . . Catastrophic 1 | . 1 . . . Database Lockouts . | . . . . . Manual 2 | . 2 . . . Terminals 15 | . 15 . . . Fabricators . | . . . . . Repair Stations . | . . . . . Recycling Units . | . . . . . Scanalyzers . | . . . . . Garrison Access . | . . . . . Terminal Hacks 27 | . 4 . 23 . Record 23 | . . . 23 . Branch Access Points 1 | . 1 . . . Locate Traps 2 | . 2 . . . Recall Investigation 1 | . 1 . . . Fabricator Hacks . | . . . . . Repair Station Hacks . | . . . . . Recycling Unit Hacks . | . . . . . Scanalyzer . | . . . . . Garrison Access Hacks . | . . . . . Unauthorized Hacks . | . . . . . Terminals . | . . . . . Fabricators . | . . . . . Repair Stations . | . . . . . Recycling Units . | . . . . . Scanalyzers . | . . . . . Garrison Access . | . . . . . Data Cores Recovered . | . . . . . Used . | . . . . . Hacking Detections 4 | . 4 . . . Full Trace Events 1 | . 1 . . . Feedback Events . | . . . . . Feedback Blocked . | . . . . . Robot Schematics Acquired . | . . . . . Robots Built . | . . . . . Authchips . | . . . . . Time . | . . . . . Total Robot Build Rating . | . . . . . Part Schematics Acquired . | . . . . . Parts Built . | . . . . . Authchips . | . . . . . Time . | . . . . . Total Part Build Rating . | . . . . . Parts Repaired . | . . . . . Time . | . . . . . Parts Recycled . | . . . . . Recycled Matter . | . . . . . Retrieved Matter . | . . . . . Retrieved Components . | . . . . . Parts Scanalyzed . | . . . . . Part Schematics Acquired . | . . . . . Parts Damaged . | . . . . . Bothacking | -11 -10 -10 -10 -9 ------------ Run | Scr Mat Min Exi Min Used RIF Installer . | . . . . . Robots Hacked . | . . . . . Non-combat . | . . . . . Combat . | . . . . . Robot Hacks Applied . | . . . . . Relay Couplers Released . | . . . . . Fabnet Peak Effective % . | . . . . . Robots Rewired . | . . . . . Allies Hacked . | . . . . . Hacks Repelled . | . . . . . Allies | -11 -10 -10 -10 -9 -------- Run | Scr Mat Min Exi Min Total Allies . | . . . . . Largest Group . | . . . . . Highest-Rated Group . | . . . . . Highest-Rated Ally . | . . . . . Total Orders . | . . . . . Ally Attacks . | . . . . . Total Damage . | . . . . . Kills . | . . . . . Allies Corrupted . | . . . . . Allies Melted . | . . . . . Intel | -11 -10 -10 -10 -9 ------- Run | Scr Mat Min Exi Min Robot Analysis Total . | . . . . . Derelict Logs Recovered 2 | . . 2 . . Drone Launches . | . . . . . Drone Recoveries . | . . . . . Exploration | -11 -10 -10 -10 -9 ------------- Run | Scr Mat Min Exi Min Turns Passed 1434 | 106 361 661 180 126 Spaces Moved 1169 | 50 279 585 190 65 Core . | . . . . . Treads . | . . . . . Legs . | . . . . . Wheels 1169 | 50 279 585 190 65 Hover . | . . . . . Flight . | . . . . . Fastest Speed 80 | 80 80 95 95 95 Average Speed 93 | 80 92 95 95 96 Slowest Speed 110 | 80 95 95 95 110 Overloaded Moves . | . . . . . Propulsion Burnouts . | . . . . . Robots Hopped . | . . . . . Cave-ins Triggered . | . . . . . Exploration Rate (%) 46 | 3 48 97 60 23 Regions Visited 4 Branch Regions 3 Pre-discovered Areas 3 | . . 2 1 . Known Exits Taken 1 | . 1 . . . Unknown Exits Taken 3 | 1 . 1 1 . Scrap Searched 2 | . . 1 . 1 Spaces Dug . | . . . . . Terrain Destroyed 71 | . . 47 . 24 Melee . | . . . . . Projectile . | . . . . . AOE 71 | . . 47 . 24 Terrain Rammed . | . . . . . Walls Destroyed . | . . . . . Machines Disabled . | . . . . . Actions | -11 -10 -10 -10 -9 --------- Run | Scr Mat Min Exi Min Total 1372 | 96 344 637 189 106 Wait 74 | 23 14 17 . 20 Move 1165 | 49 278 584 189 65 Hop . | . . . . . Pick Up 19 | 5 12 1 . 1 Fast Attach 2 | 1 . . . 1 Attach 1 | . . . . 1 Detach . | . . . . . Swap 17 | 3 7 4 . 3 Drop 20 | 5 11 3 . 1 Fire 66 | 10 21 28 . 7 Melee 7 | . . . . 7 Ram 1 | . 1 . . . Kick . | . . . . . Crush . | . . . . . Escape Stasis . | . . . . . Rewire . | . . . . . Trap . | . . . . . Miscellaneous . | . . . . . Route ------- -11/Scrapyard -10/Materials (discovered 2 exits: [*Mat] / *Min) -10/Mines (discovered 3 exits: [*Mat x2] / *Exi) -10/Exiles (discovered 2 exits: [*Min x2]) -9/Mines History --------- Turn | Location | Event 14 | -11/Scrapyard | Discovered new exit (range 3) 107 | -11/Scrapyard | Entered Materials 315 | -10/Materials | Discovered new exit (range 11) 320 | -10/Materials | Build established: Mutant 438 | -10/Materials | Identified exit to Mines 468 | -10/Materials | Entered Mines 580 | -10/Mines | YI-UF0 nonchalantly dropped a Grenade Launcher on the ground 659 | -10/Mines | Core integrity fell below 50% 784 | -10/Mines | Discovered new exit (range 14) 790 | -10/Mines | Learned location of Storage (-8) 831 | -10/Mines | Build established: Scavenger-Mutant 979 | -10/Mines | A weapon hastily lodged in a ceiling crevice suddenly fell to the ground 1032 | -10/Mines | Discovered new exit (range 15) 1125 | -10/Mines | Deemed a non-threat by the Exiles lab entrance 1125 | -10/Mines | Discovered new exit (range 5) 1129 | -10/Mines | Entered Exiles 1144 | -10/Exiles | Discovered new exit (range 15) 1153 | -10/Exiles | Met 8R-AWN 1168 | -10/Exiles | Met EX-HEX 1204 | -10/Exiles | Met EX-DEC 1223 | -10/Exiles | Learned location of Zion (-6) 1251 | -10/Exiles | Met EX-BIN 1299 | -10/Exiles | Discovered new exit (range 14) 1309 | -10/Exiles | Entered Mines 1404 | -9/Mines | Assembled infested the area 1404 | -9/Mines | Destroyed 7 combat bots 1423 | -9/Mines | Core integrity fell below 20% 1435 | -9/Mines | Destroyed by as-62956 with Assembled Heavy Rifle Last Messages --------------- 01387_ Acquired 11 matter. 01388_ Acquired 2 matter. 01389_ Acquired 6 matter. 01391_ Acquired Flight Unit. 01394_ Acquired 5 matter. 01404_ ALERT: Infestation in the mines, dispatching Demolisher response squad. 01418_ Destroyed Asb. Hover Unit. 01418_ Wheel destroyed. 01418_ Destroyed Wheel. 01420_ as-60379 destroyed. 01420_ as-69427 destroyed. 01421_ Knocked back. 01422_ as-34008 destroyed. 01429_ as-70415 destroyed. 01434_ as-63665 destroyed. 01434_ Grenade Launcher destroyed. 01434_ Destroyed Grenade Launcher. 01434_ Ion Engine destroyed. 01434_ Destroyed Ion Engine. Map ----- +----------------------------------------------------+ | ?????????????????????????????????????????????????? | | ?????????????????????????????????????????????????? | | ?????????????????????????????????????????????????? | | ?????????????????????????????????????????????????? | | ?????????????????????????????????????????????????? | | ?????????????????????????????????????????????????? | | ?????????????????????????????????????????????????? | | ?????????????????????????????????????????????????? | | ?????????????????????????????????????????????????? | | ?????????????????????????????????????????????????? | | ?????????????????????????????????????????????????? | | ?????????????????????????????????????????????????? | | ?????????????????????????????????????????????????? | | ?????????????????????????????????????????????????? | | ?????????????????????####????????????????????????? | | ???????????????????### ###??????????????????????? | | ??????????????????## #########??????????????? | | ??????????????????# #??????????????? | | ??????????????????# #??????????????? | | ?????????????????## #??????????????? | | ?????????????????# ## ##?????????????? | | ??????????????#### ## #?????????????? | | ??????????????# #?????????????? | | ??????????????# ## #??????????????? | | ###????????#### ## #####??????????? | | #???????## @ ???????? | | #??????## a aa ???????? | | #?????## ##### a< #???????? | | ##??#### #???## a #????????? | | ###### # #????# #### ### ##????????? | | ##[%=% [ #???# ##???##??# #?????????? | | ##%### = ##??# #????????? #?????????? | | ## #?## *= #???# #?????????? ##?????????? | | ## #??# ##???## ##??????????? #??????????? | | ## #??## =#?????####????????????? ??????????? | | # * #???????????????????????? ??????????? | | #### #?????????????????????????????????????? | | ???# #?????????????????????????????????????? | | ???# #?????????????????????????????????????? | | ???# #?????????????????????????????????????? | | ???# """ #?????????????????????????????????????? | | ???# """ #?????????????????????????????????????? | | ???# """ #?????????????????????????????????????? | | ???#########?????????????????????????????????????? | | ?????????????????????????????????????????????????? | | ?????????????????????????????????????????????????? | | ?????????????????????????????????????????????????? | | ?????????????????????????????????????????????????? | | ?????????????????????????????????????????????????? | | ?????????????????????????????????????????????????? | +----------------------------------------------------+ Best States ------------- Heat Dissipation 25 Energy Generation 10 Energy Capacity 250 Matter Stores 300 Matter Capacity 300 Sight Range 16 Terrain Scan Density 10 Evasion (%) 44 Item Schematics ----------------- None Robot Schematics ------------------ None Fabricated ------------ Nothing Alien Tech Used ----------------- None Achievements -------------- None Challenges ------------ None Game ------ Seed CannonGaussBay Manual? 0 Play Time 00:17:33 Cumulative 144.2 hours Start 2023.02.22 @ 15:41:28 End 2023.02.22 @ 15:58:26 Sessions 1 Manual Loads 0 Difficulty Rogue Special Mode None Game No. 138 Rogue 138 Adventurer 0 Explorer 0 Win Type - Total 5 Types 3/0/1/1/0/0/0/0/0 Lore% 75 Gallery% 61 Achievement% 55 Wizard Run 0 Options --------- ASCII 0 Keyboard 0 Movement Numpad Keybinds 0 Fullscreen 2 Font 18/Smallcaps Map View 76x50 Tactical HUD 1 Map Filters NONE Filters NONE Steam 1 RUN: bc9edb83-4a84-4cf1-a02a-b567e0607989